fUSD/lending_fUSD_20250629
["ID","MTS","AMOUNT","RATE_DAILY","PERIOD"]
[368488422,1751190713452,-185.60011488,0.00029315,3]
[368488423,1751190713462,-490.0,0.00029315,3]
[368488424,1751190713472,-490.0,0.00029315,3]
[368488425,1751190713482,-508.09,0.00029315,3]
[368488426,1751190713493,-1395.58,0.00029315,3]
[368488427,1751190713503,-596.83,0.00029315,3]
[368488428,1751190713512,-516.57,0.00029315,3]
[368488429,1751190713522,-2015.14,0.00029315,3]
[368488430,1751190713531,-1527.96,0.00029315,3]
[368488431,1751190713541,-490.0,0.00029315,3]
[368488432,1751190713694,-490.0,0.00029315,3]
[368488433,1751190713703,-615.0,0.00029315,3]
[368488434,1751190713712,-539.59446569,0.00029315,3]
[368488435,1751190713722,-490.0,0.00029315,3]
[368488436,1751190713731,-490.0,0.00029315,3]
[368488437,1751190713740,-889.47,0.00029315,3]
[368488438,1751190713749,-2302.9,0.00029315,3]
[368488439,1751190713758,-490.0,0.00029315,3]
[368488440,1751190713768,-490.0,0.00029315,3]
[368488441,1751190713778,-743.01,0.00029315,3]
[368488442,1751190713787,-490.0,0.00029315,3]
[368488443,1751190713796,-945.27,0.00029315,3]
[368488444,1751190713806,-643.27,0.00029315,3]
[368488445,1751190713816,-490.0,0.00029315,3]
[368488446,1751190713825,-1940.61,0.00029315,3]
[368488447,1751190713834,-1952.95,0.00029315,3]
[368488448,1751190713843,-1201.96,0.00029315,3]
[368488449,1751190713852,-1310.06,0.00029315,3]
[368488450,1751190713861,-490.0,0.00029315,3]
[368488451,1751190713870,-369.84,0.00029315,3]
[368488452,1751190713879,-490.0,0.00029315,3]
[368488453,1751190713888,-1125.22,0.00029315,3]
[368488454,1751190713897,-1224.35,0.00029315,3]
[368488455,1751190713906,-490.0,0.00029315,3]
[368488456,1751190713915,-976.06,0.00029315,3]
[368488457,1751190713924,-728.8,0.00029315,3]
[368488458,1751190713934,-749.58,0.00029315,3]
[368488459,1751190713944,-957.88,0.00029315,3]
[368488460,1751190713953,-1824.88,0.00029315,3]
[368488461,1751190713962,-490.0,0.00029315,3]
[368488462,1751190713973,-603.75,0.00029315,3]
[368488463,1751190713983,-490.0,0.00029315,3]
[368488464,1751190713992,-490.0,0.00029315,3]
[368488465,1751190714002,-490.0,0.00029315,3]
[368488466,1751190714011,-538.77,0.00029315,3]
[368488467,1751190714020,-776.78,0.00029315,3]
[368488468,1751190714030,-960.82,0.00029315,3]
[368488469,1751190714039,-894.84,0.00029315,3]
[368488470,1751190714049,-490.0,0.00029315,3]
[368488471,1751190714059,-490.0,0.00029315,3]
[368488472,1751190714068,-490.0,0.00029315,3]
[368488473,1751190714077,-1904.77,0.00029315,3]
[368488474,1751190714087,-490.0,0.00029315,3]
[368488475,1751190714096,-490.0,0.00029315,3]
[368488476,1751190714105,-490.0,0.00029315,3]
[368488477,1751190714115,-1462.39,0.00029315,3]
[368488478,1751190714123,-2300.89,0.00029315,3]
[368488479,1751190714133,-490.0,0.00029315,3]
[368488480,1751190714142,-694.52,0.00029315,3]
[368488481,1751190714152,-650.78,0.00029315,3]
[368488482,1751190714161,-2228.41,0.00029315,3]
[368488483,1751190714170,-490.0,0.00029315,3]
[368488484,1751190714179,-490.0,0.00029315,3]
[368488485,1751190714188,-1649.19,0.00029315,3]
[368488486,1751190714197,-490.0,0.00029315,3]
[368488487,1751190714207,-2026.94,0.00029315,3]
[368488488,1751190714216,-490.0,0.00029315,3]
[368488489,1751190714225,-843.7,0.00029315,3]
[368488490,1751190714235,-490.0,0.00029315,3]
[368488491,1751190714244,-490.0,0.00029315,3]
[368488492,1751190714253,-490.0,0.00029315,3]
[368488493,1751190714263,-490.0,0.00029315,3]
[368488494,1751190714271,-490.0,0.00029315,3]
[368488495,1751190714281,-490.0,0.00029315,3]
[368488496,1751190714291,-571.61,0.00029315,3]
[368488497,1751190714300,-1556.08,0.00029315,3]
[368488498,1751190714309,-490.0,0.00029315,3]
[368488499,1751190714319,-490.0,0.00029315,3]
[368488500,1751190714327,-896.97,0.00029315,3]
[368488501,1751190714336,-594.67,0.00029315,3]
[368488502,1751190714345,-1147.84,0.00029315,3]
[368488503,1751190714356,-1027.62,0.00029315,3]
[368488504,1751190714367,-707.16,0.00029315,3]
[368488505,1751190714376,-792.35,0.00029315,3]
[368488506,1751190714385,-880.72,0.00029315,3]
[368488507,1751190714394,-490.0,0.00029315,3]
[368488508,1751190714405,-490.0,0.00029315,3]
[368488509,1751190714414,-490.0,0.00029315,3]
[368488510,1751190714423,-489.38364587,0.00029315,3]
[368488511,1751190714433,-490.0,0.00029315,3]
[368488512,1751190714442,-780.47,0.00029315,3]
[368488513,1751190714451,-490.0,0.00029315,3]
[368488514,1751190714460,-560.33,0.00029315,3]
[368488515,1751190714470,-944.59,0.00029315,3]
[368488516,1751190714479,-525.19,0.00029315,3]
[368488517,1751190714488,-490.0,0.00029315,3]
[368488518,1751190714497,-1653.81,0.00029315,3]
[368488519,1751190714506,-490.0,0.00029315,3]
[368488520,1751190714515,-1620.77,0.00029315,3]
[368488521,1751190714524,-1900.77,0.00029315,3]
[368488522,1751190714534,-490.0,0.00029315,3]
[368488523,1751190714543,-490.0,0.00029315,3]
[368488524,1751190714552,-521.24,0.00029315,3]
[368488525,1751190714562,-1487.61,0.00029315,3]
[368488526,1751190714571,-1556.78,0.00029315,3]
[368488527,1751190714580,-1633.03,0.00029315,3]
[368488528,1751190714589,-1046.71,0.00029315,3]
[368488529,1751190714599,-580.53839799,0.00029315,3]
[368488530,1751190714608,-506.3,0.00029315,3]
[368488531,1751190714618,-1936.24,0.00029315,3]
[368488532,1751190714627,-514.5,0.00029315,3]
[368488533,1751190714636,-490.0,0.00029315,3]
[368488534,1751190714646,-2262.43,0.00029315,3]
[368488535,1751190714655,-665.95,0.00029315,3]
[368488536,1751190714664,-2474.6,0.00029315,3]
[368488537,1751190714674,-689.16,0.00029315,3]
[368488538,1751190714683,-1268.88,0.00029315,3]
[368488539,1751190714692,-490.0,0.00029315,3]
[368488540,1751190714702,-858.86,0.00029315,3]
[368488541,1751190714711,-1400.07,0.00029315,3]
[368488542,1751190714721,-490.0,0.00029315,3]
[368488543,1751190714731,-490.0,0.00029315,3]
[368488544,1751190714741,-730.59,0.00029315,3]
[368488545,1751190714751,-666.33,0.00029315,3]
[368488546,1751190714760,-1700.28,0.00029315,3]
[368488547,1751190714769,-818.45,0.00029315,3]
[368488548,1751190714779,-709.17,0.00029315,3]
[368488549,1751190714788,-1024.15,0.00029315,3]
[368488550,1751190714797,-326.23410746,0.00029315,3]
[368488551,1751190714807,-2038.87,0.00029315,3]
[368488552,1751190714816,-1027.52,0.00029315,3]
[368488553,1751190714825,-490.0,0.00029315,3]
[368488554,1751190714835,-534.02,0.00029315,3]
[368488555,1751190714844,-2394.84,0.00029315,3]
[368488556,1751190714854,-331.35630721,0.00029315,3]
[368488557,1751190714863,-490.0,0.00029315,3]
[368488558,1751190714873,-1561.51,0.00029315,3]
[368488559,1751190714882,-542.01944552,0.00029315,3]
[368488560,1751190714892,-490.0,0.00029315,3]
[368488561,1751190714902,-1167.05,0.00029315,3]
[368488562,1751190714911,-899.19,0.00029315,3]
[368488563,1751190714920,-935.31,0.00029315,3]
[368488564,1751190714929,-771.06,0.00029315,3]
[368488565,1751190714938,-610.33,0.00029315,3]
[368488566,1751190714947,-490.0,0.00029315,3]
[368488567,1751190714957,-715.86,0.00029315,3]
[368488568,1751190714966,-1503.84,0.00029315,3]
[368488569,1751190714976,-1626.28,0.00029315,3]
[368488570,1751190714986,-566.4,0.00029315,3]
[368488571,1751190714997,-490.0,0.00029315,3]
[368488572,1751190715006,-934.93,0.00029315,3]
[368488573,1751190715016,-516.29,0.00029315,3]
[368488574,1751190715026,-589.35,0.00029315,3]
[368488575,1751190715036,-2211.02,0.00029315,3]
[368488576,1751190715045,-1313.26,0.00029315,3]
[368488577,1751190715054,-878.98,0.00029315,3]
[368488578,1751190715063,-2018.3,0.00029315,3]
[368488579,1751190715072,-490.0,0.00029315,3]
[368488580,1751190715081,-490.0,0.00029315,3]
[368488581,1751190715091,-1320.46,0.00029315,3]
[368488582,1751190715100,-490.0,0.00029315,3]
[368488583,1751190715109,-1272.1,0.00029315,3]
[368488584,1751190715118,-2254.95,0.00029315,3]
[368488585,1751190715128,-490.0,0.00029315,3]
[368488586,1751190715137,-490.0,0.00029315,3]
[368488587,1751190715147,-801.49,0.00029315,3]
[368488588,1751190715156,-793.92,0.00029315,3]
[368488589,1751190715165,-1409.04,0.00029315,3]
[368488590,1751190715175,-566.98,0.00029315,3]
[368488591,1751190715184,-855.39,0.00029315,3]
[368488592,1751190715193,-520.23,0.00029315,3]
[368488593,1751190715202,-503.31,0.00029315,3]
[368488594,1751190715211,-1383.19,0.00029315,3]
[368488595,1751190715221,-490.0,0.00029315,3]
[368488596,1751190715230,-490.0,0.00029315,3]
[368488597,1751190715239,-490.0,0.00029315,3]
[368488598,1751190715248,-490.0,0.00029315,3]
[368488599,1751190715257,-907.17,0.00029315,3]
[368488600,1751190715267,-1733.55,0.00029315,3]
[368488601,1751190715276,-1411.93,0.00029315,3]
[368488602,1751190715285,-490.0,0.00029315,3]
[368488603,1751190715294,-490.0,0.00029315,3]
[368488604,1751190715303,-490.0,0.00029315,3]
[368488605,1751190715312,-1161.29,0.00029315,3]
[368488606,1751190715321,-490.0,0.00029315,3]
[368488607,1751190715330,-490.0,0.00029315,3]
[368488608,1751190715340,-490.0,0.00029315,3]
[368488609,1751190715349,-648.19,0.00029315,3]
[368488610,1751190715359,-664.2,0.00029315,3]
[368488611,1751190715371,-492.59,0.00029315,3]
[368488612,1751190715380,-1411.98,0.00029315,3]
[368488613,1751190715390,-490.0,0.00029315,3]
[368488614,1751190715399,-1476.05,0.00029315,3]
[368488615,1751190715408,-490.0,0.00029315,3]
[368488616,1751190715418,-490.0,0.00029315,3]
[368488617,1751190715427,-490.0,0.00029315,3]
[368488618,1751190715437,-490.0,0.00029315,3]
[368488619,1751190715446,-2483.68,0.00029315,3]
[368488620,1751190715456,-1539.15,0.00029315,3]
[368488621,1751190715465,-593.75429055,0.00029315,3]
[368488622,1751190715475,-622.78,0.00029315,3]
[368488623,1751190715484,-2320.44,0.00029315,3]
[368488624,1751190715493,-490.0,0.00029315,3]
[368488625,1751190715502,-894.95,0.00029315,3]
[368488626,1751190715511,-701.41,0.00029315,3]
[368488627,1751190715520,-526.1,0.00029315,3]
[368488628,1751190715529,-1005.08,0.00029315,3]
[368488629,1751190715539,-490.0,0.00029315,3]
[368488630,1751190715548,-1032.78,0.00029315,3]
[368488631,1751190715557,-490.0,0.00029315,3]
[368488632,1751190715566,-1199.97,0.00029315,3]
[368488633,1751190715575,-1283.76,0.00029315,3]
[368488634,1751190715584,-549.61,0.00029315,3]
[368488635,1751190715592,-490.0,0.00029315,3]
[368488636,1751190715602,-490.0,0.00029315,3]
[368488637,1751190715610,-901.15,0.00029315,3]
[368488638,1751190715619,-545.6,0.00029315,3]
[368488639,1751190715628,-841.45,0.00029315,3]
[368488640,1751190715638,-525.0,0.00029315,3]
[368488641,1751190715647,-908.9,0.00029315,3]
[368488642,1751190715656,-1956.7,0.00029315,3]
[368488643,1751190715666,-490.0,0.00029315,3]
[368488644,1751190715674,-1559.17,0.00029315,3]
[368488645,1751190715683,-490.0,0.00029315,3]
[368488646,1751190715692,-772.36,0.00029315,3]
[368488647,1751190715701,-1731.31,0.00029315,3]
[368488648,1751190715710,-490.0,0.00029315,3]
[368488649,1751190715719,-490.0,0.00029315,3]
[368488650,1751190715729,-1241.41,0.00029315,3]
[368488651,1751190715738,-490.0,0.00029315,3]
[368488652,1751190715748,-2257.75,0.00029315,3]
[368488653,1751190715758,-1736.54,0.00029315,3]
[368488654,1751190715767,-613.43,0.00029315,3]
[368488655,1751190715777,-2325.03,0.00029315,3]
[368488656,1751190715787,-1117.78,0.00029315,3]
[368488657,1751190715796,-1022.6,0.00029315,3]
[368488658,1751190715806,-896.69,0.00029315,3]
[368488659,1751190715817,-998.0,0.00029315,3]
[368488660,1751190715827,-490.0,0.00029315,3]
[368488661,1751190715836,-490.0,0.00029315,3]
[368488662,1751190715845,-340.60836085,0.00029315,3]
[368488663,1751190715854,-1382.19,0.00029315,3]
[368488664,1751190715863,-490.0,0.00029315,3]
[368488665,1751190715873,-1087.69,0.00029315,3]
[368488666,1751190715882,-413.03321713,0.00029315,3]
[368488667,1751190715891,-937.32,0.00029315,3]
[368488668,1751190715900,-490.0,0.00029315,3]
[368488669,1751190715910,-490.0,0.00029315,3]
[368488670,1751190715919,-490.0,0.00029315,3]
[368488671,1751190715928,-490.0,0.00029315,3]
[368488672,1751190715937,-490.0,0.00029315,3]
[368488673,1751190715946,-2003.29,0.00029315,3]
[368488674,1751190715957,-1073.82,0.00029315,3]
[368488675,1751190715966,-1428.66,0.00029315,3]
[368488676,1751190715976,-490.0,0.00029315,3]
[368488677,1751190715986,-906.56,0.00029315,3]
[368488678,1751190715995,-490.0,0.00029315,3]
[368488679,1751190716006,-751.94,0.00029315,3]
[368488680,1751190716015,-1284.2,0.00029315,3]
[368488681,1751190716025,-995.73,0.00029315,3]
[368488682,1751190716034,-730.89,0.00029315,3]
[368488683,1751190716044,-490.0,0.00029315,3]
[368488684,1751190716054,-490.0,0.00029315,3]
[368488685,1751190716064,-490.0,0.00029315,3]
[368488686,1751190716073,-490.0,0.00029315,3]
[368488687,1751190716083,-490.0,0.00029315,3]
[368488688,1751190716092,-490.0,0.00029315,3]
[368488689,1751190716102,-490.0,0.00029315,3]
[368488690,1751190716111,-490.0,0.00029315,3]
[368488691,1751190716120,-3819.49,0.00029315,3]
[368488692,1751190716130,-614.58,0.00029315,3]
[368488693,1751190716139,-2099.43,0.00029315,3]
[368488694,1751190716149,-591.09,0.00029315,3]
[368488695,1751190716159,-490.0,0.00029315,3]
[368488696,1751190716168,-490.0,0.00029315,3]
[368488697,1751190716178,-490.0,0.00029315,3]
[368488698,1751190716188,-1763.09,0.00029315,3]
[368488699,1751190716197,-930.34,0.00029315,3]
[368488700,1751190716207,-1553.22,0.00029315,3]
[368488701,1751190716216,-587.32,0.00029315,3]
[368488702,1751190716226,-1288.37,0.00029315,3]
[368488703,1751190716236,-490.0,0.00029315,3]
[368488704,1751190716246,-4450.47,0.00029315,3]
[368488705,1751190716255,-935.65,0.00029315,3]
[368488706,1751190716266,-891.46,0.00029315,3]
[368488707,1751190716275,-490.0,0.00029315,3]
[368488708,1751190716284,-490.0,0.00029315,3]
[368488709,1751190716293,-854.31,0.00029315,3]
[368488710,1751190716303,-490.0,0.00029315,3]
[368488711,1751190716312,-528.19,0.00029315,3]
[368488712,1751190716322,-490.0,0.00029315,3]
[368488713,1751190716331,-959.78,0.00029315,3]
[368488714,1751190716341,-490.0,0.00029315,3]
[368488715,1751190716350,-490.0,0.00029315,3]
[368488716,1751190716360,-766.16,0.00029315,3]
[368488717,1751190716373,-1454.99,0.00029315,3]
[368488718,1751190716382,-1177.8,0.00029315,3]
[368488719,1751190716392,-490.0,0.00029315,3]
[368488720,1751190716402,-490.0,0.00029315,3]
[368488721,1751190716414,-490.0,0.00029315,3]
[368488722,1751190716423,-1065.99,0.00029315,3]
[368488723,1751190716433,-921.89,0.00029315,3]
[368488724,1751190716444,-1049.98,0.00029315,3]
[368488725,1751190716454,-490.0,0.00029315,3]
[368488726,1751190716464,-603.29,0.00029315,3]
[368488727,1751190716474,-490.0,0.00029315,3]
[368488728,1751190716483,-1101.22,0.00029315,3]
[368488729,1751190716493,-490.0,0.00029315,3]
[368488730,1751190716503,-470.61177231,0.00029315,3]
[368488731,1751190716512,-555.36,0.00029315,3]
[368488732,1751190716522,-490.0,0.00029315,3]
[368488733,1751190716532,-1690.83,0.00029315,3]
[368488734,1751190716542,-494.25,0.00029315,3]
[368488735,1751190716551,-608.46,0.00029315,3]
[368488736,1751190716560,-916.39,0.00029315,3]
[368488737,1751190716570,-698.3,0.00029315,3]
[368488738,1751190716579,-573.71,0.00029315,3]
[368488739,1751190716589,-490.0,0.00029315,3]
[368488740,1751190716599,-1033.94,0.00029315,3]
[368488741,1751190716608,-1394.52,0.00029315,3]
[368488742,1751190716617,-841.15,0.00029315,3]
[368488743,1751190716627,-18048.03,0.00029315,3]
[368488744,1751190716637,-814.68,0.00029315,3]
[368488745,1751190716647,-994.63,0.00029315,3]
[368488746,1751190716656,-817.07,0.00029315,3]
[368488747,1751190716666,-490.0,0.00029315,3]
[368488748,1751190716675,-490.0,0.00029315,3]
[368488749,1751190716684,-490.0,0.00029315,3]
[368488750,1751190716694,-860.32,0.00029315,3]
[368488751,1751190716704,-1083.78,0.00029315,3]
[368488752,1751190716714,-895.73,0.00029315,3]
[368488753,1751190716724,-490.0,0.00029315,3]
[368488754,1751190716734,-1619.71,0.00029315,3]
[368488755,1751190716743,-2039.79,0.00029315,3]
[368488756,1751190716753,-490.0,0.00029315,3]
[368488757,1751190716763,-490.0,0.00029315,3]
[368488758,1751190716773,-522.56,0.00029315,3]
[368488759,1751190716783,-490.0,0.00029315,3]
[368488760,1751190716793,-1338.17,0.00029315,3]
[368488761,1751190716803,-2735.95,0.00029315,3]
[368488762,1751190716812,-490.0,0.00029315,3]
[368488763,1751190716823,-490.0,0.00029315,3]
[368488764,1751190716833,-5045.19,0.00029315,3]
[368488765,1751190716842,-732.19,0.00029315,3]
[368488766,1751190716852,-490.0,0.00029315,3]
[368488767,1751190716862,-490.0,0.00029315,3]
[368488768,1751190716871,-490.0,0.00029315,3]
[368488769,1751190716881,-2798.62,0.00029315,3]
[368488770,1751190716891,-1159.62,0.00029315,3]
[368488771,1751190716900,-557.27,0.00029315,3]
[368488772,1751190716909,-490.0,0.00029315,3]
[368488773,1751190716919,-1735.18,0.00029315,3]
[368488774,1751190716929,-490.0,0.00029315,3]
[368488775,1751190716939,-490.0,0.00029315,3]
[368488776,1751190716949,-795.99,0.00029315,3]
[368488777,1751190716959,-490.0,0.00029315,3]
[368488778,1751190716969,-490.0,0.00029315,3]
[368488779,1751190716979,-2632.4,0.00029315,3]
[368488780,1751190716990,-2676.96,0.00029315,3]
[368488781,1751190717000,-890.5,0.00029315,3]
[368488782,1751190717010,-815.43,0.00029315,3]
[368488783,1751190717020,-490.0,0.00029315,3]
[368488784,1751190717030,-490.0,0.00029315,3]
[368488785,1751190717040,-2287.33,0.00029315,3]
[368488786,1751190717051,-490.0,0.00029315,3]
[368488787,1751190717061,-7199.68,0.00029315,3]
[368488788,1751190717071,-1083.86,0.00029315,3]
[368488789,1751190717081,-490.0,0.00029315,3]
[368488790,1751190717091,-1198.65,0.00029315,3]
[368488791,1751190717101,-564.45,0.00029315,3]
[368488792,1751190717110,-4926.93,0.00029315,3]
[368488793,1751190717120,-2111.85,0.00029315,3]
[368488794,1751190717130,-2504.77,0.00029315,3]
[368488795,1751190717140,-670.5,0.00029315,3]
[368488796,1751190717150,-9168.68,0.00029315,3]
[368488797,1751190717161,-1466.04,0.00029315,3]
[368488798,1751190717171,-995.99,0.00029315,3]
[368488799,1751190717181,-148479.19,0.00029315,3]
[368488800,1751190717190,-1110.23,0.00029315,3]
[368488801,1751190717200,-884.61,0.00029315,3]
[368488802,1751190717210,-3927.92,0.00029315,3]
[368488803,1751190717220,-1262.58,0.00029315,3]
[368488804,1751190717230,-526.83999685,0.00029315,3]
[368488805,1751190717239,-490.0,0.00029315,3]
[368488806,1751190717249,-1550.57,0.00029315,3]
[368488807,1751190717259,-490.0,0.00029315,3]
[368488808,1751190717269,-4423.72,0.00029315,3]
[368488809,1751190717279,-799.02,0.00029315,3]
[368488810,1751190717289,-490.0,0.00029315,3]
[368488811,1751190717299,-2359.81,0.00029315,3]
[368488812,1751190717310,-1420.75,0.00029315,3]
[368488813,1751190717319,-490.0,0.00029315,3]
[368488814,1751190717329,-612.29,0.00029315,3]
[368488815,1751190717339,-490.0,0.00029315,3]
[368488816,1751190717348,-2220.09,0.00029315,3]
[368488817,1751190717358,-490.0,0.00029315,3]
[368488818,1751190717367,-490.0,0.00029315,3]
[368488819,1751190717378,-1116.8,0.00029315,3]
[368488820,1751190717390,-586.3008674,0.00029315,3]
[368488821,1751190717400,-850.38,0.00029315,3]
[368488822,1751190717410,-495.37,0.00029315,3]
[368488823,1751190717420,-1635.41,0.00029315,3]
[368488824,1751190717431,-1906.36,0.00029315,3]
[368488825,1751190717441,-2198.76,0.00029315,3]
[368488826,1751190717450,-1730.15,0.00029315,3]
[368488827,1751190717462,-490.0,0.00029315,3]
[368488828,1751190717473,-490.0,0.00029315,3]
[368488829,1751190717483,-1477.82,0.00029315,3]
[368488830,1751190717492,-3000.74,0.00029315,3]
[368488831,1751190717502,-924.29,0.00029315,3]
[368488832,1751190717511,-590.95,0.00029315,3]
[368488833,1751190717521,-818.08,0.00029315,3]
[368488834,1751190717530,-1537.71,0.00029315,3]
[368488835,1751190717540,-1894.35,0.00029315,3]
[368488836,1751190717551,-1565.54,0.00029315,3]
[368488837,1751190717561,-490.0,0.00029315,3]
[368488838,1751190717571,-707.33,0.00029315,3]
[368488839,1751190717582,-490.0,0.00029315,3]
[368488840,1751190717592,-854.62,0.00029315,3]
[368488841,1751190717602,-2120.63,0.00029315,3]
[368488842,1751190717612,-1990.15,0.00029315,3]
[368488843,1751190717622,-490.0,0.00029315,3]
[368488844,1751190717631,-490.0,0.00029315,3]
[368488845,1751190717641,-490.0,0.00029315,3]
[368488846,1751190717651,-501.24,0.00029315,3]
[368488847,1751190717661,-1303.39,0.00029315,3]
[368488848,1751190717671,-490.0,0.00029315,3]
[368488849,1751190717680,-490.0,0.00029315,3]
[368488850,1751190717690,-490.0,0.00029315,3]
[368488851,1751190717700,-490.0,0.00029315,3]
[368488852,1751190717710,-2057.83,0.00029315,3]
[368488853,1751190717720,-1066.81,0.00029315,3]
[368488854,1751190717730,-1078.53,0.00029315,3]
[368488855,1751190717740,-829.05,0.00029315,3]
[368488856,1751190717749,-2549.31,0.00029315,3]
[368488857,1751190717759,-1514.01,0.00029315,3]
[368488858,1751190717769,-490.0,0.00029315,3]
[368488859,1751190717779,-490.0,0.00029315,3]
[368488860,1751190717789,-709.69,0.00029315,3]
[368488861,1751190717799,-490.0,0.00029315,3]
[368488862,1751190717809,-1413.24,0.00029315,3]
[368488863,1751190717819,-1126.76,0.00029315,3]
[368488864,1751190717829,-499.7,0.00029315,3]
[368488865,1751190717839,-490.0,0.00029315,3]
[368488866,1751190718089,-7138.85,0.00029315,3]
[368488867,1751190718100,-490.0,0.00029315,3]
[368488868,1751190718110,-1903.95,0.00029315,3]
[368488869,1751190718120,-1687.9,0.00029315,3]
[368488870,1751190718130,-1199.32,0.00029315,3]
[368488871,1751190718140,-605.34,0.00029315,3]
[368488872,1751190718150,-490.0,0.00029315,3]
[368488873,1751190718159,-624.57,0.00029315,3]
[368488874,1751190718170,-1080.18,0.00029315,3]
[368488875,1751190718180,-490.0,0.00029315,3]
[368488876,1751190718189,-1902.03,0.00029315,3]
[368488877,1751190718199,-490.0,0.00029315,3]
[368488878,1751190718209,-685.5,0.00029315,3]
[368488879,1751190718218,-985.04,0.00029315,3]
[368488880,1751190718228,-809.87,0.00029315,3]
[368488881,1751190718238,-2277.33,0.00029315,3]
[368488882,1751190718247,-3579.22,0.00029315,3]
[368488883,1751190718257,-490.0,0.00029315,3]
[368488884,1751190718266,-1369.16,0.00029315,3]
[368488885,1751190718276,-1202.94,0.00029315,3]
[368488886,1751190718285,-1406.03,0.00029315,3]
[368488887,1751190718295,-490.0,0.00029315,3]
[368488888,1751190718305,-2322.41,0.00029315,3]
[368488889,1751190718315,-892.36,0.00029315,3]
[368488890,1751190718324,-936.2,0.00029315,3]
[368488891,1751190718334,-11425.24,0.00029315,3]
[368488892,1751190718343,-490.0,0.00029315,3]
[368488893,1751190718353,-7389.77,0.00029315,3]
[368488894,1751190718363,-2363.6,0.00029315,3]
[368488895,1751190718372,-1344.12,0.00029315,3]
[368488896,1751190718382,-490.0,0.00029315,3]
[368488897,1751190718395,-490.0,0.00029315,3]
[368488898,1751190718405,-490.0,0.00029315,3]
[368488899,1751190718414,-1010.37,0.00029315,3]
[368488900,1751190718423,-3943.02,0.00029315,3]
[368488901,1751190718434,-532.12,0.00029315,3]
[368488902,1751190718443,-719.55,0.00029315,3]
[368488903,1751190718451,-2127.37,0.00029315,3]
[368488904,1751190718463,-962.36,0.00029315,3]
[368488905,1751190718472,-490.0,0.00029315,3]
[368488906,1751190718481,-3378.38,0.00029315,3]
[368488907,1751190718491,-1167.04,0.00029315,3]
[368488908,1751190718500,-2325.84,0.00029315,3]
[368488909,1751190718510,-1319.73,0.00029315,3]
[368488910,1751190718519,-490.0,0.00029315,3]
[368488911,1751190718529,-509.95,0.00029315,3]
[368488912,1751190718538,-613.68,0.00029315,3]
[368488913,1751190718548,-2715.66,0.00029315,3]
[368488914,1751190718558,-490.0,0.00029315,3]
[368488915,1751190718568,-490.0,0.00029315,3]
[368488916,1751190718577,-1043.95,0.00029315,3]
[368488917,1751190718587,-490.0,0.00029315,3]
[368488918,1751190718597,-1294.86,0.00029315,3]
[368488919,1751190718606,-1355.41,0.00029315,3]
[368488920,1751190718616,-2207.5,0.00029315,3]
[368488921,1751190718625,-4741.41,0.00029315,3]